Workbook

Sheet Recommendation
AY4: Fruit & Veg | AZ4: 120
AY5: Meat & Fish | AZ5: 45
AY6: Fat & Sugar | AZ6: 30
AY7: Milk & Diary | AZ7: 45
AY8: Rice Bread Pasta | AZ8: 120

Sheet Fractions
AF2: Calories | AG2: Fraction | BA2: 5
AE3: =AX5 -> Fruit & Veg | AF3: =BA5 -> 144 | BA3: =ROUND(RAND()*(10-2)+2,0) -> 6
AE4: =AX6 -> Meat & Fish | AF4: =BA6 -> 54 | AZ4: U | BA4: units
AE5: =AX7 -> Fat & Sugar | AF5: 36 | AX5: Fruit & Veg | AY5: 120 | AZ5: =AY5/360 -> 0.3333333333 | BA5: =AY5/$BA$2*$BA$3 -> 144
AE6: =AX8 -> Milk & Diary | AF6: 54 | AX6: Meat & Fish | AY6: 45 | AZ6: =AY6/360 -> 0.125 | BA6: =AY6/$BA$2*$BA$3 -> 54
AE7: =AX9 -> Rice Bread Pasta | AF7: 144 | AX7: Fat & Sugar | AY7: 30 | AZ7: 0.08333333333 | BA7: 36
AE8: Total | AF8: =SUM(AF3:AF7) -> 432 | AX8: Milk & Diary | AY8: 45 | AZ8: 0.125 | BA8: 54
AX9: Rice Bread Pasta | AY9: 120 | AZ9: 0.3333333333 | BA9: 144
AE11: Calculate the fraction each food category
AE12: covers in the Pie Chart in it simplest form.

Sheet Harder_Fractions
AG2: Calories | AH2: Fractions | BB2: 5
AF3: =AY5 -> Fruit & Veg | AG3: =AZ5 -> 630 | BB3: =LCM(AW5,AW6,AW7,AW8)*10 -> 5040
AF4: =AY6 -> Meat & Fish | AG4: =AZ6 -> 560 | BA4: U | BB4: units
AF5: Fat & Sugar | AG5: 560 | AV5: =360*AX5 -> 45 | AW5: =ROUND(RAND()*(10-6)+6,0) -> 8 | AX5: =1/AW5 -> 0.125 | AY5: Fruit & Veg | AZ5: =AX5*$BB$3 -> 630 | BA5: =AZ5/360 -> 1.75 | BB5: =AZ5/$BB$2*$BB$3 -> 635040
AF6: Milk & Diary | AG6: 720 | AW6: =ROUND(RAND()*(10-6)+6,0) -> 9 | AX6: =1/AW6 -> 0.1111111111 | AY6: Meat & Fish | AZ6: =AX6*$BB$3 -> 560 | BA6: =AZ6/360 -> 1.555555556 | BB6: =AZ6/$BB$2*$BB$3 -> 564480
AF7: Rice Bread Pasta | AG7: 2570 | AW7: =ROUND(RAND()*(12-6)+6,0) -> 9 | AX7: 0.1111111111 | AY7: Fat & Sugar | AZ7: 560 | BA7: 1.555555556 | BB7: 564480
AF8: Total | AG8: =SUM(AG3:AG7) -> 5040 | AW8: =ROUND(RAND()*(9-5)+5,0) -> 7 | AX8: =1/AW8 -> 0.1428571429 | AY8: Milk & Diary | AZ8: 720 | BA8: 2 | BB8: 725760
AX9: =1-SUM(AX5:AX8) -> 0.5099206349 | AY9: Rice Bread Pasta | AZ9: =AX9*$BB$3 -> 2570 | BA9: 7.138888889 | BB9: 2590560
AX10: =SUM(AX5:AX9) -> 1
AF11: Calculate the fraction each food category
AF12: covers in the Pie Chart in it simplest form.

Sheet Degrees
AF2: Calories | AG2: Degrees | BA2: 5
AE3: =AX5 -> Fruit & Veg | AF3: =BA5 -> 2070 | AG3: 115 | BA3: =ROUND(RAND()*(30-2)+2,0) -> 18
AE4: =AX6 -> Meat & Fish | AF4: =BA6 -> 900 | AG4: 40 | AZ4: degrees | BA4: units
AE5: Fat & Sugar | AF5: 1080 | AG5: 60 | AX5: Fruit & Veg | AY5: =ROUND(RAND()*(26-20)+20,0) -> 23 | AZ5: =AY5*$BA$2 -> 115 | BA5: =$BA$3*AZ5 -> 2070
AE6: Milk & Diary | AF6: 630 | AG6: 40 | AX6: Meat & Fish | AY6: =ROUND(RAND()*(10-7)+7,0) -> 10 | AZ6: =AY6*$BA$2 -> 50 | BA6: =$BA$3*AZ6 -> 900
AE7: Rice Bread Pasta | AF7: 1800 | AG7: 105 | AX7: Fat & Sugar | AY7: =72-SUM(AY5,AY6,AY8,AY9) -> 12 | AZ7: 60 | BA7: 1080
AE8: Total | AF8: =SUM(AF3:AF7) -> 6480 | AX8: Milk & Diary | AY8: =ROUND(RAND()*(10-7)+7,0) -> 7 | AZ8: 35 | BA8: 630
AX9: Rice Bread Pasta | AY9: =ROUND(RAND()*(26-18)+18,0) -> 20 | AZ9: 100 | BA9: 1800
AE11: Calculate the centre angle of each
AE12: food category in the Pie Chart.
BA13: =360/5 -> 72

Sheet Create
AY4: Fruit & Veg | AZ4: 120
AY5: Meat & Fish | AZ5: 45
AY6: Fat & Sugar | AZ6: 30
AY7: Milk & Diary | AZ7: 45
AY8: Rice Bread Pasta | AZ8: 120

Sheet Proportion
AY4: Fruit & Veg | AZ4: 120
AY5: Meat & Fish | AZ5: 45
AY6: Fat & Sugar | AZ6: 30
AY7: Milk & Diary | AZ7: 45
AY8: Rice Bread Pasta | AZ8: 120
